lending/lending_fUSD_20250316
["ID","MTS","AMOUNT","RATE_DAILY","PERIOD"]
[356253265,1742140274950,-1723.62,0.00046999,120]
[356253266,1742140274960,-1723.62,0.00046999,120]
[356253267,1742140274970,-226729.84907129,0.00047,2]
[356253268,1742140275037,-1.99404642,0.00047,2]
[356253269,1742140275230,-345.24,0.00046575,120]
[356253270,1742140275248,-154.76,0.00046575,120]
[356253271,1742140275259,-111.64000002,0.00046575,120]
[356253272,1742140275289,-388.35999998,0.00046575,120]
[356253273,1742140275300,-500.0,0.00046575,120]
[356253274,1742140275312,-500.0,0.00046575,120]
[356253275,1742140275323,-500.0,0.00046575,120]
[356253276,1742140275333,-388.56546708,0.00046575,120]
[356253277,1742140275419,-111.43453292,0.00046575,120]
[356253278,1742140275430,-441.21,0.000466,30]
[356253279,1742140275440,-773.79,0.000466,30]
[356253280,1742140275451,-150.0,0.000466,30]
[356253281,1742140275462,-1794.58313155,0.00046649,15]
[356253282,1742140275474,-500.0,0.00046787,120]
[356253283,1742140275487,-500.0,0.00046787,120]
[356253284,1742140275498,-500.0,0.00046798,120]
[356253285,1742140275509,-500.0,0.00046888,120]
[356253286,1742140275520,-500.0,0.00046889,120]
[356253287,1742140275531,-280.03,0.00046897,120]
[356253288,1742140275540,-500.0,0.00046899,120]
[356253289,1742140275551,-500.0,0.0004698,120]
[356253290,1742140275561,-1723.62,0.00046999,120]
[356253291,1742140275571,-1723.62,0.00046999,120]
[356253292,1742140275580,-1723.62,0.00046999,120]
[356253293,1742140275590,-98966.68758113,0.00047,2]
[356253294,1742140276842,-150.0,0.00045913,120]
[356253500,1742141431609,-250.0,0.00019,2]
[356253501,1742141431621,-134.20133856,0.0001995,2]
[356253502,1742141431673,-15.79866144,0.0001995,2]
[356253503,1742141431685,-391.20133856,0.0001995,2]
[356253504,1742141431738,-108.79866144,0.0001995,2]
[356253505,1742141431747,-150.0,0.000209,2]
[356253506,1742141431757,-500.0,0.000209,2]
[356253507,1742141431766,-150.0,0.00023499,2]
[356253508,1742141431776,-500.0,0.00023499,2]
[356253509,1742141431786,-166.27,0.00026849,2]
[356253510,1742141431795,-390.42511755,0.0003018,120]
[356253511,1742141431807,-873.7755,0.00030888,7]
[356253512,1742141431816,-157.81,0.000335,31]
[356253513,1742141431825,-157.81,0.000335,31]
[356253514,1742141431834,-812.1,0.00035541,2]
[356253515,1742141431845,-262.13266,0.00035888,30]
[356253516,1742141431855,-262.13266,0.00036088,30]
[356253517,1742141431867,-262.13266,0.00036288,30]
[356253518,1742141431877,-262.13266,0.00036488,30]
[356253519,1742141431887,-262.13266,0.00036688,30]
[356253520,1742141431897,-262.13266,0.00036888,30]
[356253521,1742141431907,-302.306579,0.000369,7]
[356253522,1742141431916,-262.13266,0.00037088,30]
[356253523,1742141431926,-262.13266,0.00037288,30]
[356253524,1742141431935,-157.81,0.000373,31]
[356253525,1742141431944,-157.81,0.000373,31]
[356253526,1742141431955,-157.81,0.000373,31]
[356253527,1742141431965,-157.81,0.000373,31]
[356253528,1742141431975,-262.13266,0.00037488,30]
[356253529,1742141431986,-262.13266,0.00037688,30]
[356253530,1742141431996,-262.13266,0.00037888,30]
[356253531,1742141432006,-262.13266,0.00038088,30]
[356253532,1742141432016,-262.13266,0.00038288,30]
[356253533,1742141432028,-262.13266,0.00038488,30]
[356253534,1742141432038,-150.0,0.00038488,4]
[356253535,1742141432047,-262.13266,0.00038688,30]
[356253536,1742141432057,-302.30657884,0.00039072,8]
[356253537,1742141432067,-262.13266,0.00039088,30]
[356253538,1742141432078,-262.13266,0.00039288,30]
[356253539,1742141432087,-1436.642,0.00039288,54]
[356253540,1742141432098,-164.291,0.00039288,54]
[356253541,1742141432108,-653.17,0.00039325,2]
[356253542,1742141432123,-262.13266,0.00039488,30]
[356253543,1742141432134,-262.13266,0.00039688,30]
[356253544,1742141432143,-262.13266,0.00039888,30]
[356253545,1742141432154,-262.13266,0.00040088,30]
[356253546,1742141432163,-262.13266,0.00040288,30]
[356253547,1742141432176,-262.13266,0.00040488,30]
[356253548,1742141432186,-262.13266,0.00040688,30]
[356253549,1742141432196,-262.13266,0.00040888,30]
[356253550,1742141432206,-262.13266,0.00041088,30]
[356253551,1742141432215,-3090.79,0.00041096,30]
[356253552,1742141432225,-157.81,0.000411,31]
[356253553,1742141432234,-157.81,0.000411,31]
[356253554,1742141432244,-157.81,0.000411,31]
[356253555,1742141432253,-157.81,0.000411,31]
[356253556,1742141432263,-250.0,0.00041164,2]
[356253558,1742141432274,-159.34,0.00041243,120]
[356253560,1742141432283,-302.30657884,0.00041245,9]
[356253562,1742141432295,-262.13266,0.00041288,30]
[356253564,1742141432306,-190.72,0.00041347,2]
[356253566,1742141432315,-18237.95806096,0.00041369,2]
[356253569,1742141432336,-289.89542101,0.00041369,2]
[356253571,1742141432352,-5372.14651803,0.00041369,2]
[356253573,1742141432363,-150.09,0.0004137,120]
[356253576,1742141432378,-262.13266,0.00041488,30]
[356253579,1742141432388,-2000.0,0.00041577,120]
[356253581,1742141432398,-161.73,0.00041579,2]
[356253584,1742141432408,-653.17,0.00041589,2]
[356253587,1742141432417,-1000.0,0.00041631,2]
[356253589,1742141432427,-262.13266,0.00041688,30]
[356253592,1742141432437,-658.29,0.00041699,2]
[356253595,1742141432447,-262.13266,0.00041888,30]
[356253598,1742141432457,-150.02,0.00042152,2]
[356253600,1742141432467,-161.73,0.00042272,2]
[356253603,1742141432476,-166.27,0.00042583,2]
[356253606,1742141432486,-161.73,0.00042964,2]
[356253608,1742141432497,-302.30657884,0.00043417,9]
[356253611,1742141432506,-161.73,0.00043657,2]
[356253613,1742141432515,-329.54187313,0.00043853,2]
[356253616,1742141432529,-323.62812687,0.00043853,2]
[356253619,1742141432538,-283.03,0.00044,120]
[356253622,1742141432548,-150.0,0.0004417,120]
[356253625,1742141432558,-157.81,0.000449,39]
[356253627,1742141432568,-157.81,0.000449,39]
[356253630,1742141432577,-157.81,0.000449,39]
[356253633,1742141432587,-157.81,0.000449,39]
[356253636,1742141432596,-235.3,0.00045,120]
[356253639,1742141432606,-674.28,0.00045,120]
[356253641,1742141432618,-150.0,0.00045179,2]
[356253644,1742141432628,-150.0,0.00045298,2]
[356253647,1742141432638,-150.0,0.00045376,2]
[356253650,1742141432647,-150.0,0.00045434,2]
[356253652,1742141432657,-300.0,0.000455,7]
[356253655,1742141432667,-300.0,0.000455,7]
[356253657,1742141432677,-300.0,0.000455,7]
[356253659,1742141432687,-39.36889613,0.000455,7]
[356253829,1742141437427,-547.64500924,0.000455,7]
[356253831,1742141437437,-302.30657884,0.0004559,10]
[356253834,1742141437448,-67.50599338,0.00045641,30]
[356253840,1742141437489,-510.0000005,0.00045641,30]
[356253842,1742141437501,-201.90400612,0.00045641,30]
[356253844,1742141437511,-779.41,0.00045641,30]
[356253845,1742141437521,-442.2,0.00045641,30]
[356253846,1742141437531,-779.41,0.00045641,30]
[356253847,1742141437541,-442.2,0.00045641,30]
[356253848,1742141437551,-442.2,0.00045641,30]
[356253849,1742141437561,-779.41,0.00045641,30]
[356253850,1742141437570,-171.57,0.00045641,30]
[356253851,1742141437580,-777.91,0.00045641,30]
[356253852,1742141437591,-150.0,0.00045662,2]
[356253853,1742141437601,-884.04,0.00045741,30]
[356253854,1742141437610,-917.33,0.00045778,30]
[356253855,1742141437622,-150.0,0.00045778,30]
[356253856,1742141437631,-150.0,0.00045778,30]
[356253857,1742141437643,-345.39,0.00045778,30]
[356253858,1742141437652,-150.0,0.00045778,30]
[356253859,1742141437663,-150.0,0.00045778,30]
[356253860,1742141437673,-345.39,0.00045778,30]
[356253861,1742141437683,-345.39,0.00045778,30]
[356253862,1742141437693,-150.0,0.00045778,30]
[356253863,1742141437703,-312.44,0.00045778,30]
[356253864,1742141437713,-345.39,0.00045878,30]
[356253865,1742141437723,-345.39,0.00045878,30]
[356253866,1742141437733,-150.0,0.00045924,2]
[356253867,1742141437743,-216.7307197,0.00046073,4]
[356253869,1742141437752,-150.0,0.00046114,2]
[356253870,1742141437765,-653.17,0.00046117,2]
[356253871,1742141437775,-709.9699,0.0004616,2]
[356253872,1742141437784,-2047.7318,0.00046275,2]
[356253873,1742141437794,-159.78646431,0.00046359,2]
[356253874,1742141437807,-840.21353569,0.00046359,2]
[356253875,1742141437817,-326.97684592,0.00046373,120]
[356253876,1742141437827,-159.34,0.00046398,120]
[356253877,1742141437838,-150.0,0.00046408,2]
[356253878,1742141437848,-122.97043681,0.00046452,2]
[356253880,1742141437860,-27.02956319,0.00046452,2]
[356253881,1742141437872,-571.0,0.00046459,2]
[356253882,1742141437882,-787.0,0.00046459,2]
[356253883,1742141437891,-907.0,0.00046459,2]
[356253884,1742141437902,-541.0,0.00046459,2]
[356253885,1742141437911,-1429.0,0.00046459,2]
[356253886,1742141437921,-1271.0,0.00046459,2]
[356253887,1742141437931,-4079.0,0.00046459,2]
[356253889,1742141437941,-1013.0,0.00046459,2]
[356253891,1742141437953,-225.698,0.00046459,2]
[356253894,1742141437964,-3935.0,0.00046459,2]
[356253896,1742141437976,-179.4583132,0.00046475,15]
[356253898,1742141437986,-838.5524,0.00046475,2]
[356253901,1742141437996,-1690.71691059,0.00046475,120]
[356253904,1742141438096,-3309.28308941,0.00046475,120]
[356253906,1742141438107,-949.66691059,0.00046475,2]
[356253908,1742141438125,-1550.33308941,0.00046475,2]
[356253910,1742141438136,-3186.7716676,0.0004653,2]
[356253912,1742141438148,-468.40396298,0.0004653,2]
[356253914,1742141438160,-648.76937412,0.0004653,2]
[356253915,1742141438172,-822.49017547,0.0004653,2]
[356253916,1742141438193,-5143.51222626,0.0004653,2]
[356253917,1742141438204,-306.96,0.00046548,30]
[356253918,1742141438214,-160.4270285,0.00046573,10]
[356253919,1742141438224,-1029.78,0.00046574,120]
[356253920,1742141438234,-499.39940604,0.00046575,120]
[356253921,1742141438254,-0.60059396,0.00046575,120]
[356253922,1742141438263,-500.0,0.00046575,120]
[356253923,1742141438273,-500.41139669,0.00046575,120]
[356253924,1742141438282,-500.0,0.00046575,120]
[356253925,1742141438292,-500.0,0.00046575,120]
[356253926,1742141438301,-189.82374197,0.00046575,120]
[356253927,1742141438313,-310.17625803,0.00046575,120]
[356253928,1742141438323,-132.95466579,0.00046575,120]
[356253929,1742141438335,-367.04533421,0.00046575,120]
[356253930,1742141438346,-437.55857673,0.00046575,120]
[356253931,1742141438356,-500.0,0.00046575,120]
[356253932,1742141438365,-500.0,0.00046575,120]
[356253933,1742141438377,-500.0,0.00046575,120]
[356253934,1742141438389,-500.0,0.00046575,120]
[356253935,1742141438398,-500.0,0.00046575,120]
[356253936,1742141438410,-300.0,0.00046575,2]
[356253937,1742141438419,-500.0,0.00046575,120]
[356253938,1742141438429,-500.0,0.00046575,120]
[356253939,1742141438439,-500.0,0.00046575,120]
[356253940,1742141438449,-500.0,0.00046575,10]
[356253941,1742141438459,-500.0,0.00046575,120]
[356253942,1742141438468,-500.0,0.00046575,120]
[356253943,1742141438478,-500.0,0.00046575,120]
[356253944,1742141438487,-500.0,0.00046575,120]
[356253945,1742141438497,-397.17504976,0.00046575,120]
[356253946,1742141438507,-500.0,0.00046575,120]
[356253947,1742141438518,-93.93443966,0.00046575,120]
[356253948,1742141438534,-406.06556034,0.00046575,120]
[356253949,1742141438544,-500.0,0.00046575,120]
[356253950,1742141438554,-500.0,0.00046575,120]
[356253951,1742141438563,-500.0,0.00046575,120]
[356253952,1742141438573,-360.90587472,0.00046575,120]
[356253953,1742141438585,-139.09412528,0.00046575,120]
[356253954,1742141438595,-500.0,0.00046575,120]
[356253955,1742141438604,-500.0,0.00046575,120]
[356253956,1742141438615,-500.0,0.00046575,120]
[356253957,1742141438627,-209.40481539,0.00046575,120]
[356253958,1742141438638,-290.59518461,0.00046575,120]
[356253959,1742141438648,-494.43736946,0.00046575,120]
[356253964,1742141439828,-5.56263054,0.00046575,120]
[356253965,1742141439839,-500.0,0.00046575,120]
[356253966,1742141439849,-500.0,0.00046575,120]
[356253967,1742141439861,-500.0,0.00046575,120]
[356253968,1742141439873,-500.0,0.00046575,120]
[356253969,1742141439883,-500.0,0.00046575,120]
[356253970,1742141439893,-500.0,0.00046575,120]
[356253971,1742141439903,-500.0,0.00046575,120]
[356253972,1742141439915,-560.38220331,0.00046575,120]
[356253973,1742141439925,-510.10509781,0.00046575,120]
[356253974,1742141439935,-500.0,0.00046575,120]
[356253975,1742141439945,-500.0,0.00046575,120]
[356253976,1742141439955,-500.0,0.00046575,120]
[356253977,1742141439967,-500.0,0.00046575,120]
[356253978,1742141439977,-500.0,0.00046575,30]
[356253979,1742141439990,-500.0,0.00046575,120]
[356253980,1742141440000,-500.0,0.00046575,120]
[356253981,1742141440011,-500.0,0.00046575,120]
[356253982,1742141440022,-500.0,0.00046575,120]
[356253983,1742141440034,-500.0,0.00046575,120]
[356253984,1742141440044,-592.16,0.00046575,120]
[356253985,1742141440054,-500.0,0.00046575,120]
[356253986,1742141440064,-500.0,0.00046575,120]
[356253987,1742141440074,-500.0,0.00046575,120]
[356253988,1742141440085,-500.0,0.00046575,120]
[356253989,1742141440094,-500.0,0.00046575,120]
[356253990,1742141440259,-500.0,0.00046575,120]
[356253991,1742141440270,-500.0,0.00046575,120]
[356253992,1742141440280,-500.0,0.00046575,120]
[356253993,1742141440290,-500.0,0.00046575,120]
[356253994,1742141440299,-500.0,0.00046575,120]
[356253995,1742141440309,-500.0,0.00046575,120]
[356253996,1742141440318,-500.0,0.00046575,120]
[356253997,1742141440328,-500.0,0.00046575,120]
[356253998,1742141440337,-500.0,0.00046575,2]
[356253999,1742141440347,-500.0,0.00046575,120]
[356254000,1742141440358,-500.0,0.00046575,120]
[356254001,1742141440368,-500.0,0.00046575,120]
[356254002,1742141440380,-417.14037185,0.00046575,120]
[356254003,1742141440390,-500.0,0.00046575,120]
[356254004,1742141440401,-500.0,0.00046575,120]
[356254005,1742141440411,-500.0,0.00046575,120]
[356254006,1742141440422,-500.0,0.00046575,120]
[356254007,1742141440432,-500.0,0.00046575,120]
[356254008,1742141440446,-500.0,0.00046575,120]
[356254009,1742141440457,-500.0,0.00046575,120]
[356254010,1742141440468,-214.26,0.00046575,120]
[356254011,1742141440478,-500.0,0.00046575,120]
[356254012,1742141440488,-500.0,0.00046575,120]
[356254013,1742141440498,-500.0,0.00046575,120]
[356254014,1742141440509,-500.0,0.00046575,120]
[356254015,1742141440519,-500.0,0.00046575,120]
[356254016,1742141440528,-500.0,0.00046575,120]
[356254017,1742141440538,-500.0,0.00046575,120]
[356254018,1742141440548,-500.0,0.00046575,120]
[356254019,1742141440559,-500.0,0.00046575,120]
[356254020,1742141440569,-500.0,0.00046575,120]
[356254021,1742141440579,-500.0,0.00046575,120]
[356254022,1742141440589,-500.0,0.00046575,120]
[356254023,1742141440600,-500.0,0.00046575,120]
[356254024,1742141440609,-26.68114387,0.00046575,120]
[356254025,1742141440625,-473.31885613,0.00046575,120]
[356254026,1742141440635,-500.0,0.00046575,120]
[356254027,1742141440645,-200.39006293,0.00046575,120]
[356254028,1742141440661,-299.60993707,0.00046575,120]
[356254029,1742141440671,-478.34218767,0.00046575,120]
[356254030,1742141440692,-21.65781233,0.00046575,120]
[356254031,1742141440703,-469.43062441,0.00046575,120]
[356254032,1742141440716,-30.56937559,0.00046575,120]
[356254033,1742141440727,-500.0,0.00046575,120]
[356254034,1742141440738,-500.0,0.00046575,120]
[356254035,1742141440749,-500.0,0.00046575,120]
[356254037,1742141440759,-473.44147313,0.00046575,120]
[356254039,1742141440772,-26.55852687,0.00046575,120]
[356254041,1742141440782,-386.86267246,0.00046575,120]
[356254043,1742141440792,-477.09295018,0.00046575,120]
[356254045,1742141440804,-22.90704982,0.00046575,120]
[356254047,1742141440815,-233.52875933,0.00046575,120]
[356254048,1742141440826,-266.47124067,0.00046575,120]
[356254049,1742141440835,-20.3838343,0.00046575,120]
[356254050,1742141440848,-506.95840206,0.00046575,120]
[356254051,1742141440858,-500.0,0.00046575,120]
[356254052,1742141440868,-500.0,0.00046575,120]
[356254053,1742141440879,-498.80859793,0.00046575,120]
[356254054,1742141440891,-1.19140207,0.00046575,120]
[356254055,1742141440901,-558.00899244,0.00046575,120]
[356254056,1742141440912,-500.0,0.00046575,120]
[356254057,1742141440922,-500.0,0.00046575,120]
[356254058,1742141440932,-500.0,0.00046575,120]
[356254059,1742141440941,-500.0,0.00046575,120]
[356254060,1742141440951,-592.75326272,0.00046575,120]
[356254061,1742141440961,-500.0,0.00046575,120]
[356254062,1742141440971,-400.44586785,0.00046575,120]
[356254063,1742141440982,-500.0,0.00046575,120]
[356254064,1742141440993,-500.0,0.00046575,120]
[356254065,1742141441005,-500.0,0.00046575,120]
[356254066,1742141441017,-271.43338825,0.00046575,120]
[356254067,1742141441036,-228.56661175,0.00046575,120]
[356254068,1742141441046,-500.0,0.00046575,120]
[356254069,1742141441056,-363.71201634,0.00046575,120]
[356254070,1742141441079,-136.28798366,0.00046575,120]
[356254071,1742141441089,-500.0,0.00046575,120]
[356254072,1742141441100,-34.85278728,0.00046575,120]
[356254073,1742141441132,-465.14721272,0.00046575,120]
[356254074,1742141441142,-589.60791859,0.00046575,60]
[356254075,1742141441152,-566.41653119,0.00046575,120]
[356254076,1742141441161,-500.0,0.00046575,120]
[356254077,1742141441171,-500.0,0.00046575,120]
[356254078,1742141441180,-326.09254592,0.00046575,120]
[356254079,1742141441189,-500.0,0.00046575,120]
[356254080,1742141441199,-500.0,0.00046575,120]
[356254081,1742141441208,-500.0,0.00046575,120]
[356254082,1742141441217,-500.0,0.00046575,120]
[356254083,1742141441227,-500.0,0.00046575,120]
[356254084,1742141441236,-543.25426078,0.00046575,120]
[356254085,1742141441247,-500.0,0.00046575,120]
[356254086,1742141441258,-420.57663395,0.00046575,120]
[356254087,1742141441270,-79.42336605,0.00046575,120]
[356254088,1742141441281,-500.0,0.00046575,120]
[356254089,1742141441290,-519.15053411,0.00046575,120]
[356254090,1742141441300,-500.0,0.00046575,120]
[356254091,1742141441310,-500.0,0.00046575,120]
[356254092,1742141441319,-500.0,0.00046575,120]
[356254093,1742141441329,-500.0,0.00046575,120]
[356254094,1742141441338,-500.0,0.00046575,120]
[356254095,1742141441347,-500.0,0.00046575,120]
[356254096,1742141441357,-306.83334805,0.00046575,120]
[356254097,1742141441366,-500.0,0.00046575,120]
[356254098,1742141441377,-500.0,0.00046575,120]
[356254099,1742141441387,-500.0,0.00046575,120]
[356254100,1742141441396,-500.0,0.00046575,120]
[356254101,1742141441405,-500.0,0.00046575,120]
[356254102,1742141441415,-500.0,0.00046575,120]
[356254103,1742141441424,-500.0,0.00046575,120]
[356254104,1742141441433,-500.0,0.00046575,120]
[356254105,1742141441443,-500.0,0.00046575,120]
[356254106,1742141441452,-500.0,0.00046575,120]
[356254107,1742141441462,-500.0,0.00046575,120]
[356254108,1742141441472,-221.47197622,0.00046575,120]
[356254109,1742141441483,-805.36,0.00046575,120]
[356254110,1742141441493,-500.0,0.00046575,120]
[356254111,1742141441503,-500.0,0.00046575,120]
[356254112,1742141441512,-500.0,0.00046575,120]
[356254113,1742141441522,-500.0,0.00046575,120]
[356254114,1742141441531,-500.0,0.00046575,120]
[356254115,1742141441540,-500.0,0.00046575,120]
[356254116,1742141441549,-500.0,0.00046575,120]
[356254117,1742141441559,-500.0,0.00046575,120]
[356254118,1742141441568,-500.0,0.00046575,120]
[356254119,1742141441578,-500.0,0.00046575,120]
[356254120,1742141441589,-525.62,0.00046575,120]
[356254121,1742141441598,-500.0,0.00046575,120]
[356254122,1742141441607,-500.0,0.00046575,120]
[356254123,1742141441617,-500.0,0.00046575,120]
[356254124,1742141441628,-500.0,0.00046575,120]
[356254125,1742141441638,-500.0,0.00046575,120]
[356254126,1742141441648,-500.0,0.00046575,120]
[356254127,1742141441658,-500.0,0.00046575,120]
[356254128,1742141441667,-500.0,0.00046575,120]
[356254129,1742141441677,-500.0,0.00046575,120]
[356254130,1742141441687,-500.0,0.00046575,120]
[356254131,1742141441696,-500.0,0.00046575,120]
[356254132,1742141441706,-500.0,0.00046575,120]
[356254133,1742141441716,-500.0,0.00046575,120]
[356254134,1742141441725,-500.0,0.00046575,120]
[356254135,1742141441735,-473.76,0.00046575,120]
[356254136,1742141441744,-500.0,0.00046575,120]
[356254137,1742141441754,-500.0,0.00046575,120]
[356254138,1742141441764,-500.0,0.00046575,120]
[356254139,1742141441774,-500.0,0.00046575,120]
[356254140,1742141441785,-500.0,0.00046575,120]
[356254141,1742141441795,-500.0,0.00046575,120]
[356254142,1742141441805,-500.0,0.00046575,120]
[356254143,1742141441814,-500.0,0.00046575,120]
[356254144,1742141441824,-500.0,0.00046575,120]
[356254145,1742141441833,-500.0,0.00046575,120]
[356254146,1742141441844,-500.0,0.00046575,120]
[356254147,1742141441854,-500.0,0.00046575,120]
[356254148,1742141441864,-500.0,0.00046575,120]
[356254149,1742141441874,-500.0,0.00046575,120]
[356254150,1742141441883,-500.0,0.00046575,120]
[356254151,1742141441893,-500.0,0.00046575,120]
[356254152,1742141441903,-500.0,0.00046575,120]
[356254153,1742141441913,-500.0,0.00046575,120]
[356254154,1742141441922,-500.0,0.00046575,120]
[356254155,1742141441931,-608.27,0.00046575,120]
[356254156,1742141441942,-500.0,0.00046575,120]
[356254157,1742141441953,-500.0,0.00046575,120]
[356254158,1742141441963,-500.0,0.00046575,120]
[356254159,1742141441972,-500.0,0.00046575,120]
[356254160,1742141441982,-500.0,0.00046575,120]
[356254161,1742141441993,-500.0,0.00046575,120]
[356254162,1742141442004,-500.0,0.00046575,120]
[356254163,1742141442014,-500.0,0.00046575,120]
[356254164,1742141442024,-500.0,0.00046575,120]
[356254165,1742141442037,-500.0,0.00046575,120]
[356254166,1742141442048,-500.0,0.00046575,120]
[356254167,1742141442057,-500.0,0.00046575,120]
[356254168,1742141442067,-500.0,0.00046575,120]
[356254169,1742141442076,-500.0,0.00046575,7]
[356254170,1742141442086,-500.0,0.00046575,120]
[356254171,1742141442095,-500.0,0.00046575,120]
[356254172,1742141442106,-500.0,0.00046575,120]
[356254173,1742141442115,-500.0,0.00046575,120]
[356254174,1742141442128,-500.0,0.00046575,120]
[356254175,1742141442138,-500.0,0.00046575,120]
[356254176,1742141442147,-500.0,0.00046575,120]
[356254177,1742141442157,-500.0,0.00046575,120]
[356254178,1742141442166,-500.0,0.00046575,120]
[356254179,1742141442175,-500.0,0.00046575,120]
[356254180,1742141442186,-600.0,0.00046575,120]
[356254181,1742141442195,-500.0,0.00046575,120]
[356254182,1742141442204,-500.0,0.00046575,120]
[356254183,1742141442214,-500.0,0.00046575,120]
[356254184,1742141442223,-500.0,0.00046575,120]
[356254185,1742141442234,-660.49,0.00046575,120]
[356254186,1742141442245,-500.0,0.00046575,120]
[356254187,1742141442256,-500.0,0.00046575,120]
[356254188,1742141442265,-225.46811289,0.00046575,120]
[356254190,1742141442275,-500.0,0.00046575,120]
[356254192,1742141442284,-500.0,0.00046575,100]
[356254194,1742141442294,-500.0,0.00046575,120]
[356254197,1742141442306,-500.0,0.00046575,120]
[356254199,1742141442316,-500.0,0.00046575,120]
[356254201,1742141442325,-500.0,0.00046575,120]
[356254203,1742141442335,-500.0,0.00046575,120]
[356254206,1742141442344,-500.0,0.00046575,120]
[356254209,1742141442354,-500.0,0.00046575,120]
[356254211,1742141442365,-500.0,0.00046575,120]
[356254213,1742141442375,-500.0,0.00046575,120]
[356254216,1742141442384,-500.0,0.00046575,120]
[356254219,1742141442394,-500.0,0.00046575,120]
[356254223,1742141442403,-500.0,0.00046575,120]
[356254226,1742141442413,-500.0,0.00046575,2]
[356254228,1742141442423,-500.0,0.00046575,120]
[356254230,1742141442432,-500.0,0.00046575,120]
[356254232,1742141442441,-500.0,0.00046575,120]
[356254233,1742141442450,-500.0,0.00046575,120]
[356254235,1742141442459,-500.0,0.00046575,120]
[356254237,1742141442469,-500.0,0.00046575,120]
[356254240,1742141442479,-516.52073488,0.00046575,120]
[356254243,1742141442490,-500.0,0.00046575,120]
[356254246,1742141442501,-500.0,0.00046575,120]
[356254248,1742141442510,-513.42682409,0.00046575,120]
[356254250,1742141442520,-500.0,0.00046575,120]
[356254252,1742141442529,-500.0,0.00046575,120]
[356254254,1742141442539,-500.0,0.00046575,120]
[356254256,1742141442548,-467.95009079,0.00046575,120]
[356254258,1742141442557,-500.0,0.00046575,2]
[356254261,1742141442567,-500.0,0.00046575,120]
[356254262,1742141442576,-500.0,0.00046575,120]
[356254263,1742141442585,-88.59206339,0.00046575,120]
[356254264,1742141442599,-411.40793661,0.00046575,120]
[356254265,1742141442609,-500.0,0.00046575,120]
[356254266,1742141442619,-765.77,0.00046575,120]
[356254267,1742141442632,-500.0,0.00046575,120]
[356254268,1742141442641,-263.33334339,0.00046575,120]
[356254269,1742141442653,-236.66665661,0.00046575,120]
[356254270,1742141442664,-1000.0,0.00046575,30]
[356254271,1742141442675,-225.96040939,0.00046575,120]
[356254272,1742141442689,-279.44567672,0.00046575,120]
[356254273,1742141442699,-500.0,0.00046575,120]
[356254274,1742141442712,-500.0,0.00046575,120]
[356254275,1742141442722,-500.0,0.00046575,120]
[356254276,1742141442732,-574.37939162,0.00046575,120]
[356254277,1742141442743,-500.0,0.00046575,120]
[356254278,1742141442752,-138.9749317,0.00046575,120]
[356254279,1742141442765,-361.0250683,0.00046575,120]
[356254280,1742141442775,-150.0,0.00046575,120]